[Event "Saint Louis Super Swiss 2023"]
[Site "Saint Louis"]
[Date "2023.03.12"]
[Round "1.1"]
[White "Nyzhnyk, Illya"]
[Black "Stearman, Josiah"]
[Result "1-0"]
[ECO "E15"]
[WhiteElo "2654"]
[BlackElo "2391"]
[Annotator "TA"]
[PlyCount "55"]
[EventDate "2023.03.12"]
[EventType "swiss"]
[EventCountry "USA"]
[SourceTitle "playchess.com"]
[Source "ChessBase"]
[SourceQuality "1"]
[TimeControl "5400+30"]

{[%evp 13,55,21,28,10,16,7,78,80,80,64,91,93,87,95,114,104,111,76,81,74,129,118,111,102,161,159,256,249,455,470,1091,1058,1067,1073,1067,1071,1031,1016,1610,1578,1545,1562,1462,1446]} 1. Nf3 {[%emt 0:00:59]} Nf6 {[%emt 0:00:19]} 2. c4 {[%emt 0:00:06]} e6 {[%emt 0:00:27]} 3. d4 {[%emt 0:00:06]} b6 {[%emt 0:00:41]} 4. g3 {[%emt 0:00:17]} Ba6 {[%emt 0:00:06]} 5. Qa4 {[%emt 0:00:12]} Bb7 {[%emt 0:00:17]} 6. Bg2 {[%emt 0:01:54]} c5 {[%emt 0:03:37]} 7. O-O {[%emt 0:00:50]} Be7 {[%emt 0:00:35]} (7... cxd4 {looks sharper.} 8. Nxd4 Qc8 9. Bf4 Bxg2 10. Kxg2 Bc5) 8. Rd1 {[%emt 0:00:49][%cal Od4d5] is the legacy move (8.dxc5). E15: Queen's Indian: 4 g3 sidelines, 4 g3 Ba6 and 4 g3 Bb7 early deviations.} O-O {[%emt 0:01:04]} 9. Nc3 {[%emt 0:00:21]} (9. dxc5 {feels hotter.} Bxc5 10. Nc3 Ng4 11. Rf1) 9... Na6 {[%emt 0:14:30] [#]} (9... cxd4 $11 {remains equal.} 10. Nxd4 Bxg2 11. Kxg2 Qc8) 10. e4 $146 {[%emt 0:05:30] White is more active. White is better.} ({Predecessor:} 10. d5 exd5 11. cxd5 d6 12. Qb3 Re8 13. e4 Bf8 14. Nd2 Nd7 15. f4 Nb4 16. Nc4 {½-½ Vaschenko,A-Shistariova,S Kiev Spring op 1999 (7)}) 10... cxd4 {[%emt 0:20:29]} 11. Nxd4 {[%emt 0:00:20] Black must now prevent e5.} Ng4 {[%emt 0:00:17]} 12. Qc2 {[%emt 0:15:37]} Bc5 {[%emt 0:01:35]} 13. Na4 {[%emt 0:00:12]} Be7 {[%emt 0:08:28]} 14. Qe2 {[%emt 0:01:56]} Ne5 {[%emt 0:00:43]} 15. Nb5 {[%emt 0:04:13]} Nc5 {[%emt 0:08:59]} 16. Nac3 {[%emt 0:01:33][%cal Ba4c3,Bc3d5,Bd5f6][%mdl 32]} Qb8 {[%emt 0:02:12]} (16... a6 $142) 17. b4 {[%emt 0:03:14]} Na6 {[%emt 0:01:28]} 18. f4 {[%emt 0:00:17]} Nc6 {[%emt 0:02:59]} (18... Ng6 $16) 19. a3 $36 {[%emt 0:00:08][%mdl 2048] And now e5 would win. White is really pushing.} ({Of course not} 19. Rxd7 $6 Qc8 20. Rd1 Bxb4 $11) 19... d6 {[%emt 0:00:46]} (19... Rd8 $16 20. e5 Nc7) 20. Bb2 {[%emt 0:06:46]} Rd8 $2 {[%emt 0:01:08]} (20... Nc7 21. Nxd6 Bxd6) 21. Nd5 {[%emt 0:00:06] White is clearly winning.} Bf8 {[%emt 0:01:44] [#]} (21... exd5 $2 22. exd5 $18) (21... h6 $142 22. Nxe7+ Nxe7) 22. Nf6+ $1 {[%emt 0:00:21][%mdl 512]} Kh8 {[%emt 0:00:16] [#]} 23. Qh5 $1 {[%emt 0:00:13][%csl Gf6,LRf7,LRh7][%cal Rh5h7]} gxf6 {[%emt 0:00:13]} 24. Bxf6+ {[%emt 0:00:18]} Bg7 {[%emt 0:00:02]} 25. Qxf7 {[%emt 0:00:08][%csl Gf7][%cal Rf6g7]} Bxf6 {[%emt 0:02:31]} 26. Qxf6+ {[%emt 0:00:04]} Kg8 {[%emt 0:00:04]} 27. Qxe6+ {[%emt 0:00:08]} Kg7 {[%emt 0:00:17]} 28. Nxd6 {[%emt 0:00:17] Black got outplayed after the opening. A cool game by Nyzhnyk.   Weighted Error Value: White=0.05 (flawless) /Black=0.39} 1-0

[Event "Saint Louis Super Swiss 2023"]
[Site "Saint Louis"]
[Date "2023.03.12"]
[Round "1.2"]
[White "Sukandar, Irine Kharisma"]
[Black "Swiercz, Dariusz"]
[Result "1/2-1/2"]
[ECO "B32"]
[WhiteElo "2389"]
[BlackElo "2646"]
[Annotator "TA"]
[PlyCount "90"]
[EventDate "2023.03.12"]
[EventType "swiss"]
[EventCountry "USA"]
[SourceTitle "playchess.com"]
[Source "ChessBase"]
[SourceQuality "1"]
[TimeControl "5400+30"]

{[%evp 10,90,29,31,30,33,30,29,39,0,0,0,0,18,11,0,12,-2,0,0,0,0,0,0,0,-2,0,-5,-16,-26,-15,-14,-14,-43,-25,-89,-41,-55,-46,-97,-67,-72,-41,-41,-50,-66,-68,-67,-65,-39,-37,-48,-8,-3,0,0,0,-22,0,0,0,-26,0,0,0,0,0,0,0,0,0,-8,0,0,0,0,0,0,0,0,0,0,0]} 1. e4 {[%emt 0:00:08]} c5 {[%emt 0:00:11]} 2. Nf3 {[%emt 0:00:42][%cal Bg1f3,Bf3d4,Bd4b5][%mdl 32]} Nc6 {[%emt 0:00:55]} 3. d4 {[%emt 0:01:32]} cxd4 {[%emt 0:00:05]} 4. Nxd4 {[%emt 0:00:05]} e5 {[%emt 0:00:14]} 5. Nb5 {[%emt 0:01:00]} d6 {[%emt 0:00:05]} 6. c4 {[%emt 0:01:59]} g6 {[%emt 0:00:28] 6...Be6 gains popularity. B32: Sicilian: Löwenthal and Kalashnikov Variations.} 7. N1c3 {[%emt 0:02:35] [#] Strongly threatening Nd5.} a6 {[%emt 0:00:10]} 8. Na3 {[%emt 0:00:05]} Be6 {[%emt 0:00:05] White has an edge.} 9. g3 {[%emt 0:06:48]} Bg7 {[%emt 0:02:08]} 10. Bg2 {[%emt 0:00:07] [#]} Nd4 $146 {[%emt 0:13:28]} ({Predecessor:} 10... h5 11. O-O h4 12. Nd5 Rc8 13. Be3 Nh6 14. c5 Ng4 15. cxd6 Nxe3 16. fxe3 hxg3 17. hxg3 Qxd6 {1-0 Alinasab,M (2325)-Pavlidou,E (2189) Titled Tuesday intern op 08th Feb Early blitz 2022 (5)}) 11. O-O {[%emt 0:05:43]} Ne7 {[%emt 0:01:03]} 12. b3 {[%emt 0:02:31]} Rc8 {[%emt 0:01:54][%cal Ob7b5]} 13. Bb2 {[%emt 0:02:02]} O-O {[%emt 0:04:27]} 14. Nc2 {[%emt 0:01:37]} Nxc2 {[%emt 0:02:01]} 15. Qxc2 {[%emt 0:00:05]} b5 {[%emt 0:00:07]} 16. cxb5 {[%emt 0:02:29]} axb5 {[%emt 0:00:11] [#] Hoping for ...b4.} 17. Qd2 {[%emt 0:04:17]} Qb6 {[%emt 0:04:18]} 18. Rfc1 {[%emt 0:05:04]} b4 {[%emt 0:03:46]} 19. Nd5 {[%emt 0:02:18]} Nxd5 {[%emt 0:00:08]} 20. exd5 {[%emt 0:00:05]} Bd7 {[%emt 0:00:06]} 21. a3 {[%emt 0:01:55]} bxa3 {[%emt 0:09:38]} 22. Bxa3 {[%emt 0:00:35]} (22. Rxa3 $11 {keeps the balance.} Rxc1+ 23. Bxc1) 22... Rxc1+ {[%emt 0:02:56]} ({Reject} 22... Qxb3 23. Bxd6 Rxc1+ 24. Rxc1 $11) (22... e4 $17 23. Rab1 f5) 23. Rxc1 $15 {[%emt 0:00:28]} Ra8 {[%emt 0:01:06]} ({Don't play} 23... Qxb3 24. Bxd6 Ra8 25. h3 $11) 24. Bb4 {[%emt 0:06:49]} (24. Qb4 $1 $15 Qa7 25. Bb2) 24... Bf8 {[%emt 0:14:38]} 25. h4 {[%emt 0:03:05][%cal Oh4h5]} Rb8 {[%emt 0:14:38]} 26. Rc4 {[%emt 0:01:41]} h5 {[%emt 0:00:06]} 27. Bf3 {[%emt 0:06:30][%cal Bg2f3,Bf3d1,Bd1c2,Bc2e4][%mdl 32]} Bc8 {[%emt 0:05:52]} 28. Bd1 {[%emt 0:07:12]} Ba6 {[%emt 0:08:58]} 29. Ba5 {[%emt 0:01:18]} Qb5 {[%emt 0:01:01][%cal Of8h6] Threatens to win with ...Bh6!} 30. Bc2 {[%emt 0:08:33]} Bb7 {[%emt 0:08:42]} 31. Be4 {[%emt 0:00:56]} Ba8 {[%emt 0:00:00]} (31... Qxb3 $2 32. Rb4 Qa3 33. Bc7 $18) 32. Bb4 {[%emt 0:06:06]} Qd7 {[%emt 0:02:29]} 33. Qg5 {[%emt 0:07:37]} Be7 {[%emt 0:00:32]} (33... Rb5 $5 {[%cal Ra8d5]}) 34. Qc1 {[%emt 0:00:57]} Bf8 {[%emt 0:00:16]} 35. Qa3 {[%emt 0:01:48]} Bb7 {[%emt 0:00:42]} (35... f5 $5 {[%cal Rf5e4]} 36. Bg2 e4 $17) 36. Qa5 {[%emt 0:02:04] The position is equal.} Ra8 {[%emt 0:00:26]} 37. Qc7 {[%emt 0:00:31]} Qxc7 {[%emt 0:00:37]} 38. Rxc7 {[%emt 0:00:02]} Rb8 {[%emt 0:00:23]} 39. Bd2 {[%emt 0:01:49]} Ba6 {[%emt 0:00:33]} 40. b4 {[%emt 0:04:14]} Bb5 {[%emt 0:00:01]} 41. Bg5 {[%emt 0:02:25]} Ba4 {[%emt 0:00:32]} 42. Bd2 {[%emt 0:00:45]} Bb5 {[%emt 0:00:14]} 43. Bg5 {[%emt 0:00:11]} Ba4 {[%emt 0:01:03]} 44. Bd2 {[%emt 0:00:09]} Bb5 {[%emt 0:00:43]} 45. Bg5 {[%emt 0:00:39]} Ba4 {[%emt 0:00:29] Weighted Error Value: White=0.09 (flawless) /Black=0.07 (flawless)} 1/2-1/2

[Event "Saint Louis Super Swiss 2023"]
[Site "Saint Louis"]
[Date "2023.03.12"]
[Round "1.3"]
[White "Durarbayli, Vasif"]
[Black "Park, Evan"]
[Result "1/2-1/2"]
[ECO "C92"]
[WhiteElo "2635"]
[BlackElo "2383"]
[Annotator "TA"]
[PlyCount "119"]
[EventDate "2023.03.12"]
[EventType "swiss"]
[EventCountry "USA"]
[SourceTitle "playchess.com"]
[Source "ChessBase"]
[SourceQuality "1"]
[TimeControl "5400+30"]

{[%evp 24,119,0,12,14,8,14,0,10,17,0,-6,85,95,87,60,64,20,28,25,13,8,3,22,16,15,20,8,9,12,68,70,67,68,65,61,66,48,58,65,87,0,2,7,0,-30,-8,-8,-8,-8,-8,-8,0,-112,-104,-101,-90,-91,-85,-76,-76,-76,-76,-76,-76,-76,0,0,0,-76,-76,-76,-76,-76,-76,-76,-76,-76,-48,-245,-76,-76,-76,-245,-56,-76,-76,-76,0,-245,-245,-245,-245,-245,-245,-245,-8,-8]} 1. e4 {[%emt 0:00:02]} e5 {[%emt 0:01:52]} 2. Nf3 {[%emt 0:00:28]} Nc6 {[%emt 0:00:07]} 3. Bb5 {[%emt 0:00:27]} a6 {[%emt 0:01:09]} 4. Ba4 {[%emt 0:00:13]} Nf6 {[%emt 0:00:17]} 5. O-O {[%emt 0:00:06]} Be7 {[%emt 0:00:13]} 6. Re1 {[%emt 0:00:04]} b5 {[%emt 0:00:14]} 7. Bb3 {[%emt 0:00:04]} d6 {[%emt 0:00:20]} 8. c3 {[%emt 0:00:06]} O-O {[%emt 0:00:05]} 9. h3 {[%emt 0:00:03]} Bb7 {[%emt 0:01:49]} 10. d4 {[%emt 0:00:54]} Re8 {[%emt 0:00:11]} 11. Nbd2 {[%emt 0:01:09]} Bf8 {[%emt 0:00:47]} 12. d5 {[%emt 0:00:18]} Nb8 {[%emt 0:03:40]} 13. Nf1 {[%emt 0:00:14]} c6 {[%emt 0:01:20] C92: Closed Ruy Lopez: 9...Be6, Karpov and Flohr-Zaitsev Variations.} 14. dxc6 {[%emt 0:08:12]} Bxc6 {[%emt 0:00:30]} 15. Bg5 {[%emt 0:01:02]} Nbd7 {[%emt 0:00:57]} 16. N3h2 {[%emt 0:03:01]} Qc7 {[%emt 0:03:49]} (16... Bxe4 $2 17. Rxe4 Nc5 18. Re1 $18) 17. Ng3 {[%emt 0:02:44]} (17. Qf3 $5 {[%cal Rh2g4]}) 17... Qb7 {[%emt 0:16:37]} (17... a5 $11) 18. Qf3 $16 {[%emt 0:13:57] Threatens to win with Ng4. White is more active.} h6 {[%emt 0:17:53]} 19. Bxf6 {[%emt 0:22:49]} (19. Bxh6 {seems wilder.} a5 20. Ng4 a4 21. Bc2) 19... Nxf6 {[%emt 0:00:04] [#]} 20. Rad1 $146 {[%emt 0:00:09][%cal Ba1d1,Bd1d5,Bd5b5][%mdl 32]} ({Predecessor:} 20. Ng4 Nxg4 21. Qxg4 Rad8 22. Rad1 Kh8 23. Rd3 a5 24. Bd5 Bxd5 25. Rxd5 Rc8 26. Rc1 {½-½ Ederer,K (2003)-Van Bommel,T (2007) RB-2016-0-00316}) 20... a5 $1 {[%emt 0:14:58]} 21. Ng4 {[%emt 0:00:17]} Nxg4 {[%emt 0:00:31]} 22. Qxg4 {[%emt 0:00:08][%cal Od1d6] Rxd6! would be deadly.} a4 $132 {[%emt 0:03:09][%mdl 2048] Black is not keeping still} 23. Bd5 {[%emt 0:00:06]} Bxd5 {[%emt 0:00:51]} 24. Rxd5 {[%emt 0:00:00]} b4 $1 {[%emt 0:01:32]} 25. c4 {[%emt 0:00:00] Black is weak on the light squares} b3 {[%emt 0:04:58]} 26. Rb5 {[%emt 0:01:27]} Qc8 {[%emt 0:02:15]} (26... Qc6 $11) 27. axb3 $14 {[%emt 0:00:14]} axb3 {[%emt 0:00:28]} 28. Qe2 {[%emt 0:01:40]} (28. Rxb3 Qxc4 29. Rc3 Qe6 $11) 28... Rb8 {[%emt 0:01:55]} 29. Rxb8 {[%emt 0:03:16]} Qxb8 {[%emt 0:00:03]} 30. Qd3 {[%emt 0:00:14]} Qb4 {[%emt 0:02:18]} 31. Rc1 {[%emt 0:00:14]} Ra8 {[%emt 0:05:15]} 32. Qc3 {[%emt 0:03:11]} (32. Nf1 $16) 32... Qb7 $1 $11 {[%emt 0:01:57]} 33. Rd1 {[%emt 0:04:13]} Ra4 {[%emt 0:01:13]} 34. c5 {[%emt 0:08:10]} Rd4 {[%emt 0:03:24]} (34... dxc5 $5 {[%cal Ra4d4]} 35. Qxe5 Qb6 $15) 35. Rxd4 {[%emt 0:01:19]} exd4 {[%emt 0:00:02]} 36. Qxd4 {[%emt 0:00:05]} dxc5 {[%emt 0:00:11][%mdl 4096] Endgame KQB-KQN} 37. Qc4 {[%emt 0:00:06]} Bd6 {[%emt 0:02:16]} 38. Ne2 {[%emt 0:03:10]} (38. Nf1 $11 {keeps the balance.}) 38... Qa7 {[%emt 0:03:37] Hoping for ...Qa1+.} 39. Nc1 {[%emt 0:00:57]} Qa1 {[%emt 0:00:58] aiming for ...Bf4.} 40. g3 {[%emt 0:00:16] Repels Bf4} Qb1 $1 {[%emt 0:03:22]} (40... Qxb2 $6 41. Nxb3 g6 42. Qd5 $11) 41. Kf1 {[%emt 0:07:21]} Be5 {[%emt 0:00:47]} (41... Qxb2 42. Nxb3 g6 43. Qd5 $11) 42. Qxc5 {[%emt 0:00:12]} Bxb2 {[%emt 0:00:55]} ({Reject} 42... Qxe4 $6 43. Nxb3 Bxb2 44. Qc8+ Kh7 45. Kg1 $11) ({Don't play} 42... Qxb2 43. Qc8+ Kh7 44. Qf5+ Kg8 45. Nxb3 $11) 43. Qc8+ {[%emt 0:00:05]} Kh7 {[%emt 0:00:03]} 44. Qf5+ {[%emt 0:00:04]} Kg8 {[%emt 0:00:05]} 45. Qc8+ {[%emt 0:00:03]} Kh7 {[%emt 0:00:03]} 46. Qf5+ {[%emt 0:00:04]} g6 {[%emt 0:00:32]} 47. Qxf7+ {[%emt 0:00:05]} Bg7 {[%emt 0:00:04] ( -> ...b2)} 48. Qxb3 {[%emt 0:00:03]} Qxc1+ {[%emt 0:00:03]} 49. Kg2 {[%emt 0:00:05]} h5 {[%emt 0:02:03]} 50. h4 {[%emt 0:00:57]} Qc6 {[%emt 0:01:35]} 51. Qd5 {[%emt 0:03:01]} ({White should play} 51. Qd3 $15) 51... Qc3 $2 {[%emt 0:00:41]} (51... Qxd5 $1 $19 {has better winning chances.} 52. exd5 Bf8) 52. Qf7 $17 {[%emt 0:01:23]} Qd4 {[%emt 0:00:42]} 53. Qd5 {[%emt 0:00:16] [#]} (53. Qe7 $17 {keeps fighting.}) 53... Qf6 $2 {[%emt 0:00:48]} ({Black should try} 53... Qxd5 $1 $19 54. exd5 Be5) 54. Qd7 {[%emt 0:00:12]} Qb2 {[%emt 0:01:07]} 55. Qf7 {[%emt 0:00:17]} Qd4 $2 {[%emt 0:00:36]} (55... Qe2 $17 56. Qe7 Qc4) 56. Qd5 $19 {[%emt 0:00:05] [#]} Qxd5 $1 {[%emt 0:00:42]} 57. exd5 {[%emt 0:00:06]} Be5 {[%emt 0:00:19]} 58. f4 {[%emt 0:00:49]} Bd6 {[%emt 0:00:33]} 59. g4 {[%emt 0:00:25]} hxg4 $2 {[%emt 0:00:41]} (59... Bxf4 $19 60. gxh5 Kg7) 60. Kg3 {[%emt 0:00:07] Weighted Error Value: White=0.24 (precise) /Black=0.26 (precise)} 1/2-1/2

[Event "Saint Louis Super Swiss 2023"]
[Site "Saint Louis"]
[Date "2023.03.12"]
[Round "1.4"]
[White "Lee, Alice"]
[Black "Hakobyan, Aram"]
[Result "0-1"]
[ECO "D38"]
[WhiteElo "2362"]
[BlackElo "2620"]
[Annotator "TA"]
[PlyCount "98"]
[EventDate "2023.03.12"]
[EventType "swiss"]
[EventCountry "USA"]
[SourceTitle "playchess.com"]
[Source "ChessBase"]
[SourceQuality "1"]
[TimeControl "5400+30"]

{[%evp 13,98,24,24,20,20,20,17,22,17,21,15,0,0,0,0,0,0,0,0,-20,-19,-19,-11,-56,-56,-51,-32,-68,-56,-68,-68,-68,-68,-71,-68,-69,-53,-70,-70,-69,-68,-69,-58,-62,-54,-95,-97,-108,-86,-127,-108,-227,-235,-235,-228,-251,-258,-339,-339,-322,-259,-516,-481,-6070,-6334,-5782,-6093,-5782,-5691,-3543,-1553,-1638,-1703,-750,-556,-29976,-29978,-29978,-29979,-29982,-29983,-29983,-29984,-29984,-29985,-29986,-29985]} 1. d4 {[%emt 0:00:02]} Nf6 {[%emt 0:00:17]} 2. c4 {[%emt 0:00:07]} e6 {[%emt 0:00:05]} 3. Nf3 {[%emt 0:00:06]} d5 {[%emt 0:00:29]} 4. Nc3 {[%emt 0:00:09]} Nbd7 {[%emt 0:01:26]} 5. Qc2 {[%emt 0:00:17]} Bb4 {[%emt 0:01:29]} 6. cxd5 {[%emt 0:00:15]} exd5 {[%emt 0:00:24]} 7. Bg5 {[%emt 0:00:49]} h6 {[%emt 0:00:22]} 8. Bh4 {[%emt 0:00:10] D38: Queen's Gambit Declined: Ragozin Defence (4 Nf3 Bb4).} g5 {[%emt 0:00:45] 8...c5 is not played anymore.} 9. Bg3 {[%emt 0:00:11]} Ne4 {[%emt 0:00:09]} 10. Nd2 {[%emt 0:00:36] The position is equal.} Nxg3 {[%emt 0:00:18]} 11. hxg3 {[%emt 0:00:09]} Nb6 {[%emt 0:00:06]} 12. O-O-O {[%emt 0:13:03]} Qf6 $36 {[%emt 0:05:15][%mdl 2048] Black has the initiative.} 13. e4 {[%emt 0:05:44]} Qxf2 {[%emt 0:04:42]} (13... Qxd4 $2 14. Nb5 Qxf2 15. Nxc7+ Ke7 16. Nxa8 (16. Nxd5+ $2 Nxd5 17. exd5 Bf5 $19) 16... Nxa8 17. Kb1 $18 (17. exd5 Bf5 $16)) 14. Nxd5 {[%emt 0:02:40]} Nxd5 {[%emt 0:00:45]} (14... Qxd4 $2 15. Nxc7+ Ke7 16. Nxa8 Nxa8 17. Nc4 $18) 15. exd5 {[%emt 0:00:11] [#] Qa4+ would be deadly.} Bd7 $146 {[%emt 0:05:12] Prevents Qa4. Active counter play!} (15... Qxd4 $2 16. Nc4 (16. Qxc7 O-O $17) 16... Qc5 17. a3 $18) ({Predecessor:} 15... Bxd2+ 16. Rxd2 Qe1+ 17. Rd1 Qe3+ 18. Kb1 Bd7 19. Qxc7 Rc8 20. Qe5+ Qxe5 21. dxe5 Kf8 {1-0 Ramesa,M (2191)-Pretterhofer,K (1980) Vienna Husek op 2014 (4)}) 16. Ne4 {[%emt 0:10:54]} (16. Qb3 $5 {[%cal Rd2e4]} Bxd2+ 17. Rxd2 Qe1+ 18. Rd1 $11) 16... Qxc2+ {[%emt 0:03:26]} 17. Kxc2 {[%emt 0:00:03]} O-O-O {[%emt 0:09:26]} 18. Nf6 {[%emt 0:02:58] Wards off Bg4} (18. Bd3 $5) 18... Bf5+ {[%emt 0:00:08] This pair of bishops is nice.} 19. Bd3 {[%emt 0:00:26]} Bxd3+ {[%emt 0:02:35]} 20. Kxd3 {[%emt 0:09:26]} Be7 $1 {[%emt 0:00:09]} 21. Rdf1 {[%emt 0:01:13]} Bxf6 $1 {[%emt 0:00:40]} 22. Rxf6 {[%emt 0:00:06]} Rxd5 {[%emt 0:00:05]} 23. Rhxh6 $15 {[%emt 0:03:22][%mdl 4096] Endgame KRR-KRR} Rhd8 {[%emt 0:00:06]} 24. Rxf7 {[%emt 0:05:07]} Rxd4+ {[%emt 0:00:07]} 25. Kc3 {[%emt 0:01:16]} Rd3+ {[%emt 0:00:49]} 26. Kc2 $1 {[%emt 0:00:34]} Rd2+ {[%emt 0:00:27]} 27. Kc1 {[%emt 0:02:50]} R2d4 {[%emt 0:04:52]} 28. b3 {[%emt 0:09:10] Wards off Rc4+} R4d5 {[%emt 0:11:35]} 29. Rh1 {[%emt 0:06:30] Black converts the advantage convincingly.} b6 {[%emt 0:06:43] Threatens to win with ...Rc5+.} 30. Rhf1 {[%emt 0:01:08]} g4 {[%emt 0:05:54]} 31. R7f4 {[%emt 0:16:06]} Rd2 {[%emt 0:01:29]} 32. Kb1 {[%emt 0:07:27]} (32. Rxg4 $17 Rxa2 33. Ra4 Rxa4 34. bxa4) 32... Rxg2 $19 {[%emt 0:00:41]} 33. Rxg4 {[%emt 0:00:02]} Rdd2 {[%emt 0:00:21]} 34. Ra4 {[%emt 0:00:46]} Kb7 {[%emt 0:00:06]} ({Worse is} 34... Rxg3 35. Kc1 Rdg2 36. Rxa7 $17) 35. g4 {[%emt 0:03:22]} b5 {[%emt 0:01:15][%mdl 64] [#] Deflection} 36. Ra3 {[%emt 0:00:35]} Kb6 {[%emt 0:00:39]} 37. Rc1 $2 {[%emt 0:00:35]} (37. b4 {only move.}) 37... a5 {[%emt 0:00:58][%cal Ba7a5,Ba5b4][%mdl 32]} 38. b4 {[%emt 0:00:28]} (38. g5 $142 Rxg5 39. Re1) 38... Rb2+ {[%emt 0:00:47]} 39. Ka1 {[%emt 0:00:02]} axb4 {[%emt 0:00:04]} 40. Ra8 {[%emt 0:00:46]} Kb7 {[%emt 0:01:12]} 41. Ra5 {[%emt 0:00:09]} c6 {[%emt 0:00:19] White must now prevent ...Rbd2.} 42. g5 {[%emt 0:00:36]} Rbd2 {[%emt 0:01:22] ( -> ...Rd8)} 43. Rb1 {[%emt 0:00:57]} Rd4 {[%emt 0:00:43] Hoping for ...Rg3.} 44. a3 {[%emt 0:00:19]} b3 {[%emt 0:02:58] Black mates.} 45. Rxb3 {[%emt 0:00:33]} Rd8 {[%emt 0:00:02]} 46. a4 {[%emt 0:00:43]} Kb6 {[%emt 0:00:12]} ({Inferior is} 46... Rxg5 47. axb5 c5 48. b6 $11) 47. Raxb5+ {[%emt 0:00:24]} cxb5 {[%emt 0:00:10]} 48. Rxb5+ {[%emt 0:00:05]} Ka6 {[%emt 0:00:14]} 49. Rb1 {[%emt 0:00:23]} Rdd2 {[%emt 0:00:06] Weighted Error Value: White=0.53/Black=0.07 (flawless)} 0-1

[Event "Saint Louis Super Swiss 2023"]
[Site "Saint Louis"]
[Date "2023.03.12"]
[Round "1.5"]
[White "Bruzon Batista, Lazaro"]
[Black "Jacobson, Aaron"]
[Result "1-0"]
[ECO "E01"]
[WhiteElo "2610"]
[BlackElo "2308"]
[Annotator "TA"]
[PlyCount "67"]
[EventDate "2023.03.12"]
[EventType "swiss"]
[EventCountry "USA"]
[SourceTitle "playchess.com"]
[Source "ChessBase"]
[SourceQuality "1"]
[TimeControl "5400+30"]

{[%evp 9,67,31,35,34,26,25,39,18,23,0,8,5,14,6,8,15,41,47,60,23,66,22,19,22,21,14,50,46,60,53,52,53,119,126,113,103,144,137,256,250,252,254,238,243,324,289,308,264,657,717,702,682,697,662,3057,2260,12834,12834,12834,12833]} 1. d4 {[%emt 0:00:03]} d5 {[%emt 0:08:16]} 2. c4 {[%emt 0:01:47]} e6 {[%emt 0:00:04]} 3. Nf3 {[%emt 0:02:29]} Nf6 {[%emt 0:00:07]} 4. g3 {[%emt 0:00:17]} h6 {[%emt 0:00:58]} 5. Bg2 {[%emt 0:00:54]} Bd6 {[%emt 0:00:05]} 6. O-O {[%emt 0:01:08] E01: Catalan: Early deviations.} O-O {[%emt 0:00:08]} 7. b3 {[%emt 0:03:33]} b6 {[%emt 0:07:17]} 8. cxd5 $5 {[%emt 0:08:50][%mdl 4] White is slightly better. An interesting side line.} exd5 {[%emt 0:00:08]} 9. Ba3 {[%emt 0:00:05] [#]} Bxa3 $146 {[%emt 0:12:54]} ({Predecessor:} 9... Bb7 10. Bxd6 Qxd6 11. Nc3 a6 12. Rc1 Re8 13. e3 Nbd7 14. Qc2 Rac8 15. Rfd1 Ne4 16. Nxe4 dxe4 {0-1 Arabidze,M (2436)-Jacobson,B (2491) Titled Tuesday intern op 04th May blitz 2021 (3)}) 10. Nxa3 {[%emt 0:00:20]} Qe7 {[%emt 0:00:20]} 11. Nb5 {[%emt 0:04:44]} c5 {[%emt 0:01:24]} 12. Rc1 {[%emt 0:02:18]} Be6 {[%emt 0:02:22]} 13. Ne5 {[%emt 0:05:40]} Rc8 {[%emt 0:02:03]} 14. dxc5 {[%emt 0:11:35]} bxc5 {[%emt 0:00:48]} 15. Nd3 {[%emt 0:01:45] White has more active pieces. The black rooks are badly placed.} Nbd7 {[%emt 0:05:10]} 16. Qd2 {[%emt 0:01:53]} a6 {[%emt 0:17:13]} 17. Nc3 {[%emt 0:00:15][%cal Bb5c3,Bc3e2,Be2f4][%mdl 32]} Nb6 {[%emt 0:02:06]} (17... d4 $5 {[%cal Rd4c3]} 18. Ne4 Bd5 19. Nxf6+ Nxf6 $11) 18. e4 {[%emt 0:17:59]} d4 {[%emt 0:19:20]} 19. Ne2 {[%emt 0:00:25]} a5 {[%emt 0:01:27]} ({Not} 19... c4 20. Ndf4 $16) 20. Nef4 {[%emt 0:10:17]} Nfd7 {[%emt 0:05:49]} (20... Rc7 $14) 21. e5 $16 {[%emt 0:02:17]} Ra7 {[%emt 0:00:33]} 22. Nxe6 {[%emt 0:00:19]} Qxe6 {[%emt 0:03:48] [#]} 23. Rfe1 $1 {[%emt 0:00:42]} Nd5 {[%emt 0:02:13] [#]} (23... Qe7 $16 24. Bh3 Rc6) 24. Nxc5 $1 $18 {[%emt 0:02:51][%mdl 576] Discovered Attack, Remove Defender, Decoy} Nxc5 {[%emt 0:07:24]} (24... Rxc5 25. Rxc5) 25. Qxd4 {[%emt 0:00:10]} Rac7 {[%emt 0:00:27][%cal Oc5b3] aiming for ...Nxb3!} 26. Bxd5 {[%emt 0:02:50]} Qf5 {[%emt 0:00:32][%cal Oc5b3]} 27. Qe3 {[%emt 0:05:00]} g5 {[%emt 0:00:32]} 28. Rc4 {[%emt 0:03:04]} Kg7 $2 {[%emt 0:00:29]} (28... Qd3) 29. Rec1 {[%emt 0:02:32] White is clearly winning.} Na6 {[%emt 0:00:11] [#]} 30. Bb7 $1 {[%emt 0:00:48][%mdl 576] Double Attack} Rxc4 {[%emt 0:00:34]} 31. bxc4 {[%emt 0:00:09]} ({Inferior is} 31. Rxc4 Rxc4 32. Kg2 (32. Bxa6 Re4 $17) 32... Rc5 33. Bxa6 Qxe5 34. Qxe5+ Rxe5 $19) 31... Rxc4 {[%emt 0:00:26]} 32. Rxc4 {[%emt 0:01:41]} Qb1+ {[%emt 0:00:08]} 33. Rc1 {[%emt 0:00:04]} Qxb7 {[%emt 0:00:06]} 34. e6 {[%emt 0:00:07] An entertaining game by Bruzon Batista.   Weighted Error Value: White=0.09 (flawless) /Black=0.43} 1-0